bitfinex/quotes_BTCUSD_20240712
["timestamp","ask_amount","ask_price","bid_price","bid_amount"]
[1720799005707,0.65261687,58146.0,58145.0,0.005913]
[1720799006473,0.65261687,58146.0,58145.0,0.007913]
[1720799006892,0.30865587,58146.0,58145.0,0.007913]
[1720799007093,0.13530779,58146.0,58145.0,0.92746192]
[1720799007301,0.12475155,58146.0,58145.0,1.42294902]
[1720799007577,0.22776184,58146.0,58145.0,1.5057033]
[1720799007798,0.12475155,58146.0,58145.0,1.42294902]
[1720799008024,0.01173755,58152.0,58151.0,0.171966]
[1720799008226,0.16625602,58152.0,58151.0,0.170966]
[1720799008424,0.28938331,58152.0,58151.0,0.17798291]
[1720799008873,0.13486484,58152.0,58151.0,0.00701691]
[1720799009004,0.13486484,58152.0,58151.0,0.00601691]
[1720799009005,1.40030584,58152.0,58151.0,0.00601691]
[1720799009204,1.40030584,58152.0,58145.0,0.014913]
[1720799009205,0.17334808,58146.0,58145.0,0.014913]
[1720799009408,0.12312729,58146.0,58145.0,0.186896]
[1720799009632,0.12312729,58146.0,58145.0,0.530863]
[1720799010032,0.08098493,58146.0,58145.0,0.530863]
[1720799010233,0.08098493,58146.0,58145.0,0.539863]
[1720799010234,0.12412729,58146.0,58145.0,0.539863]
[1720799010446,0.12312729,58146.0,58145.0,0.516863]
[1720799011027,0.12312729,58146.0,58145.0,0.526863]
[1720799011254,0.12412729,58146.0,58145.0,0.526863]
[1720799011455,0.12474483,58146.0,58145.0,0.526863]
[1720799011658,0.12474488,58146.0,58145.0,0.022913]
[1720799011881,0.12474488,58146.0,58145.0,0.538863]
[1720799012197,0.12474488,58146.0,58145.0,0.88283]
[1720799012349,0.12474488,58146.0,58145.0,1.226797]
[1720799012549,0.12474488,58146.0,58145.0,1.42252892]
[1720799012550,0.22775985,58146.0,58145.0,1.42252892]
[1720799013075,0.22775451,58146.0,58145.0,1.42252892]
[1720799014306,0.09577317,58146.0,58145.0,1.76649592]
[1720799014708,0.04388428,58146.0,58145.0,1.76649592]
[1720799015059,0.04388428,58146.0,58145.0,1.74449592]
[1720799015060,0.04288428,58146.0,58145.0,1.74449592]
[1720799015263,0.07724649,58150.0,58148.0,0.23160592]
[1720799015264,0.05149766,58149.0,58148.0,0.23160592]
[1720799015477,0.09438172,58149.0,58148.0,0.91750392]
[1720799015701,0.09438172,58149.0,58148.0,1.26145292]
[1720799015874,0.04288406,58149.0,58148.0,1.26145292]
[1720799016296,0.04288406,58149.0,58148.0,1.33083268]
[1720799016297,0.09437889,58149.0,58148.0,1.33083268]
[1720799016499,0.04288406,58149.0,58148.0,1.33083268]
[1720799016700,0.09437688,58149.0,58148.0,1.26838863]
[1720799016900,0.0943773,58149.0,58148.0,1.26838863]
[1720799017172,0.04288406,58149.0,58148.0,1.28238863]
[1720799017326,0.04288406,58149.0,58148.0,1.29638863]
[1720799017937,0.00336808,58158.0,58157.0,0.171948]
[1720799018134,0.12715355,58158.0,58157.0,0.171948]
[1720799018361,0.12715355,58158.0,58157.0,0.17887648]
[1720799018567,0.12715355,58158.0,58146.0,0.343958]
[1720799018568,0.00336808,58152.0,58146.0,0.343958]
[1720799018761,0.08511435,58149.0,58148.0,0.543922]
[1720799018984,0.12378547,58149.0,58148.0,0.94550292]
[1720799019215,0.11972237,58149.0,58148.0,1.28945192]
[1720799019355,0.171949,58157.0,58148.0,1.28945192]
[1720799019356,0.22641216,58150.0,58149.0,0.91749192]
[1720799019545,0.12342325,58150.0,58149.0,0.91749192]
[1720799019753,0.20161592,58150.0,58149.0,1.26143592]
[1720799020020,0.12437493,58150.0,58149.0,1.26143592]
[1720799020210,0.20161628,58150.0,58149.0,1.26143592]
[1720799020409,0.12437493,58150.0,58149.0,1.26143592]
[1720799020614,0.12437377,58150.0,58149.0,1.26143592]
[1720799020943,0.12437377,58150.0,58149.0,1.203804]
[1720799020944,0.11953836,58150.0,58149.0,1.203804]
[1720799021170,0.15448364,58158.0,58157.0,0.171948]
[1720799021171,0.00336808,58158.0,58157.0,0.171948]
[1720799021342,0.12865671,58158.0,58157.0,0.171948]
[1720799021749,0.12865671,58158.0,58157.0,0.17887853]
[1720799021953,0.28314306,58158.0,58157.0,0.17887853]
[1720799022403,0.12865671,58158.0,58157.0,0.17887853]
[1720799023766,0.12948671,58158.0,58157.0,0.00693053]
[1720799023950,0.00419808,58158.0,58157.0,0.01793053]
[1720799024296,0.00419808,58158.0,58157.0,0.02593053]
[1720799024297,0.28543191,58158.0,58157.0,0.02593053]
[1720799024504,0.45738015,58158.0,58157.0,0.02593053]
[1720799024842,0.42438015,58158.0,58157.0,0.02593053]
[1720799025026,0.26988799,58158.0,58157.0,0.02593053]
[1720799025441,0.58077799,58158.0,58157.0,0.02593053]
[1720799025637,0.92466799,58158.0,58157.0,0.02593053]
[1720799025848,1.26855799,58158.0,58157.0,0.019]
[1720799026040,1.32855799,58158.0,58157.0,0.019]
[1720799026241,1.70346167,58158.0,58157.0,0.019]
[1720799026797,1.87354799,58158.0,58157.0,0.019]
[1720799027613,1.808605,58158.0,58157.0,0.008]
[1720799027814,0.515923,58148.0,58147.0,0.00306353]
[1720799028017,0.171977,58147.0,58145.0,0.000913]
[1720799028247,0.515941,58146.0,58145.0,0.000913]
[1720799028443,1.01763059,58146.0,58145.0,0.000913]
[1720799028643,1.16033059,58146.0,58145.0,0.000913]
[1720799028847,1.6781351,58146.0,58145.0,0.000913]
[1720799029252,1.84825259,58146.0,58145.0,0.000913]
[1720799029453,2.04825259,58146.0,58145.0,0.000913]
[1720799029662,2.04825259,58146.0,58141.0,0.000913]
[1720799029663,1.810632,58142.0,58141.0,0.000913]
[1720799029808,1.84836059,58142.0,58141.0,0.000913]
[1720799030892,1.002662,58142.0,58141.0,0.000913]
[1720799031234,0.38342089,58142.0,58141.0,0.000913]
[1720799031437,0.38342089,58142.0,58141.0,0.001913]
[1720799031438,0.56458562,58142.0,58141.0,0.001913]
[1720799031565,0.56457737,58142.0,58141.0,0.001913]
[1720799031967,0.04860037,58142.0,58141.0,0.173908]
[1720799032192,0.03760037,58142.0,58141.0,0.88262482]
[1720799032552,0.03760037,58142.0,58141.0,0.86489]
[1720799032809,0.03760037,58142.0,58141.0,0.004913]
[1720799033433,0.26786364,58142.0,58141.0,0.004913]
[1720799033609,0.26695092,58142.0,58141.0,0.004913]
[1720799033814,0.11248765,58142.0,58141.0,0.176908]
[1720799034027,0.11248765,58142.0,58141.0,0.5365898]
[1720799034220,0.171975,58148.0,58145.0,0.171983]
[1720799034534,0.11235189,58147.0,58145.0,0.170983]
[1720799034733,0.11235189,58146.0,58145.0,0.169983]
[1720799035457,0.11235189,58146.0,58145.0,0.168983]
[1720799035659,0.28433289,58146.0,58143.0,0.171989]
[1720799035871,0.15446384,58144.0,58142.0,0.171991]
[1720799036037,0.28434389,58143.0,58141.0,0.000913]
[1720799036245,0.11235189,58142.0,58141.0,0.000913]
[1720799036650,0.11235189,58142.0,58141.0,0.172908]
[1720799036803,0.11235189,58142.0,58141.0,0.86089]
[1720799037006,0.11235189,58142.0,58141.0,0.516899]
[1720799037261,0.11235189,58142.0,58141.0,0.000913]
[1720799037479,0.07545299,58142.0,58141.0,0.000913]
[1720799037679,0.03632742,58142.0,58141.0,0.172908]
[1720799037833,0.03632742,58142.0,58141.0,0.000913]
[1720799037834,0.20831942,58142.0,58141.0,0.000913]
[1720799038036,0.28377241,58142.0,58141.0,0.000913]
[1720799038259,0.28477241,58142.0,58141.0,0.008913]
[1720799038468,0.28477241,58142.0,58141.0,0.019913]
[1720799038469,0.28577241,58142.0,58141.0,0.019913]
[1720799040325,0.11378041,58142.0,58141.0,0.191908]
[1720799040528,0.11378041,58142.0,58141.0,0.535899]
[1720799040764,0.11391349,58142.0,58141.0,0.535899]
[1720799040957,0.11391349,58142.0,58141.0,0.96818595]
[1720799041151,0.11387503,58142.0,58141.0,1.16718595]
[1720799041480,0.11387503,58142.0,58141.0,1.57707695]
[1720799041672,0.19110634,58142.0,58141.0,1.57707695]
[1720799041881,0.11387503,58142.0,58141.0,1.45707695]
[1720799042501,0.11387503,58142.0,58141.0,1.57707695]
[1720799042621,0.038376,58142.0,58141.0,1.57707695]
[1720799043031,0.038376,58142.0,58141.0,1.92106795]
[1720799043266,0.03817787,58142.0,58141.0,1.832772]
[1720799044065,0.03717787,58142.0,58141.0,1.824772]
[1720799044436,0.03717787,58142.0,58141.0,1.827772]
[1720799044585,0.03717787,58142.0,58141.0,1.841772]
[1720799044792,0.03617787,58142.0,58141.0,1.827772]
[1720799044992,0.05148608,58146.0,58142.0,0.12]
[1720799044993,0.05148608,58144.0,58142.0,0.12]
[1720799045192,0.05148608,58145.0,58144.0,0.859932]
[1720799045517,0.08724134,58145.0,58144.0,0.859932]
[1720799045724,0.08724125,58145.0,58144.0,1.203905]
[1720799046121,0.03574785,58145.0,58144.0,1.203905]
[1720799046525,0.07724976,58146.0,58145.0,0.171983]
[1720799046760,0.07724976,58146.0,58145.0,0.63495]
[1720799046761,0.11332815,58146.0,58145.0,0.63495]
[1720799046910,0.11332815,58146.0,58145.0,0.978917]
[1720799047112,0.11332815,58146.0,58145.0,0.93007089]
[1720799047352,0.11332815,58146.0,58145.0,1.27403789]
[1720799047557,0.11332815,58146.0,58145.0,1.45363789]
[1720799047970,0.11332815,58146.0,58145.0,1.33463789]
[1720799048170,0.11333953,58146.0,58145.0,1.34863789]
[1720799048369,0.03607839,58146.0,58145.0,1.411484]
[1720799048574,0.03607839,58146.0,58145.0,1.292484]
[1720799049188,0.11334973,58146.0,58145.0,1.292484]
[1720799049393,0.03607839,58146.0,58145.0,1.292484]
[1720799049773,0.001,58152.0,58151.0,0.515898]
[1720799049952,0.11225323,58152.0,58151.0,0.515898]
[1720799050336,0.11225323,58152.0,58151.0,0.171966]
[1720799050967,0.11225323,58152.0,58151.0,0.19289777]
[1720799051180,0.11225323,58152.0,58151.0,0.20389777]
[1720799051544,0.7826989,58152.0,58151.0,0.03193177]
[1720799051899,0.62814223,58152.0,58151.0,0.03193177]
[1720799052102,0.62814223,58152.0,58151.0,0.02693177]
[1720799052344,1.20594914,58152.0,58151.0,0.02693177]
[1720799052543,1.05136823,58152.0,58151.0,0.02693177]
[1720799052786,1.05136823,58152.0,58151.0,0.02]
[1720799052993,0.940115,58152.0,58151.0,0.02]
[1720799053146,1.05187453,58152.0,58151.0,0.02]
[1720799053349,0.940115,58152.0,58151.0,0.02]
[1720799053600,1.05187419,58152.0,58151.0,0.02]
[1720799053948,1.20645628,58152.0,58151.0,0.02]
[1720799054251,1.20645628,58152.0,58151.0,0.0269965]
[1720799055675,1.20652473,58152.0,58151.0,0.0269965]
[1720799056345,0.940115,58152.0,58151.0,0.0269965]
[1720799056490,1.20639882,58152.0,58151.0,0.0269965]
[1720799057144,1.05181916,58152.0,58151.0,0.0269965]
[1720799057478,1.05181916,58152.0,58151.0,0.02]
[1720799057875,0.62859316,58152.0,58151.0,0.02]
[1720799058073,0.78317228,58152.0,58151.0,0.02]
[1720799058274,0.62859316,58152.0,58151.0,0.02]
[1720799058483,0.78317066,58152.0,58151.0,0.0269999]
[1720799058680,0.62859316,58152.0,58151.0,0.0269999]
[1720799059047,0.78317166,58152.0,58151.0,0.0269999]
[1720799059475,0.78317182,58152.0,58151.0,0.0269999]
[1720799059633,0.78328154,58152.0,58151.0,0.0269999]
[1720799060094,0.78328145,58152.0,58151.0,0.0269999]
[1720799060297,0.78328477,58152.0,58151.0,0.0269999]
[1720799060499,0.62870292,58152.0,58151.0,0.0269999]
[1720799060698,0.62953292,58152.0,58151.0,0.0891999]
[1720799060901,0.78311473,58152.0,58151.0,0.0891999]
[1720799061057,0.78411473,58152.0,58151.0,0.0891999]
[1720799061252,0.62953292,58152.0,58151.0,0.0269999]
[1720799063069,0.62959875,58152.0,58151.0,0.0269999]
[1720799063472,0.62957781,58152.0,58151.0,0.0269999]
[1720799064365,0.97350381,58152.0,58151.0,0.0269999]
[1720799064570,1.92355581,58152.0,58151.0,0.0269999]
[1720799064794,1.92355581,58152.0,58151.0,0.02]
[1720799064795,2.09751395,58152.0,58151.0,0.02]
[1720799065024,2.09751031,58152.0,58151.0,0.02]
[1720799065199,1.92355581,58152.0,58151.0,0.02]
[1720799065422,1.92355581,58152.0,58151.0,0.011]
[1720799065611,0.172992,58142.0,58141.0,0.000913]
[1720799065782,0.28485081,58142.0,58141.0,0.000913]
[1720799065981,0.28433775,58142.0,58141.0,0.0079182]
[1720799066346,0.62845477,58142.0,58141.0,0.0079182]
[1720799067334,0.78309362,58142.0,58141.0,0.0079182]
[1720799067665,0.78409362,58142.0,58141.0,0.0219182]
[1720799067959,0.78409362,58142.0,58141.0,0.0359182]
[1720799067960,0.78509362,58142.0,58141.0,0.0359182]
[1720799068737,0.78509362,58142.0,58141.0,0.028913]
[1720799069521,0.7821626,58142.0,58141.0,0.028913]
[1720799071059,0.7821626,58142.0,58141.0,0.03592866]
[1720799071704,0.518977,58142.0,58141.0,0.03592866]
[1720799071905,1.51783073,58142.0,58141.0,0.03592866]
[1720799072113,1.57783073,58142.0,58141.0,0.03592866]
[1720799072413,1.57783073,58142.0,58141.0,0.028913]
[1720799072414,2.34123633,58142.0,58141.0,0.028913]
[1720799072606,1.82323073,58142.0,58141.0,0.028913]
[1720799072809,1.83378297,58142.0,58141.0,0.028913]
[1720799072960,1.76009964,58142.0,58141.0,0.028913]
[1720799073184,2.17828087,58142.0,58141.0,0.028913]
[1720799073398,2.06908424,58142.0,58141.0,0.028913]
[1720799073611,2.17858312,58142.0,58141.0,0.028913]
[1720799073956,2.17758312,58142.0,58141.0,0.014913]
[1720799074160,2.17758312,58142.0,58130.0,0.000913]
[1720799074161,1.205175,58131.0,58130.0,0.000913]
[1720799074350,1.43467388,58131.0,58130.0,0.000913]
[1720799075291,1.31467388,58131.0,58130.0,0.000913]
[1720799075897,1.31479299,58131.0,58130.0,0.000913]
[1720799076300,1.31473548,58131.0,58130.0,0.000913]
[1720799076991,1.31473548,58131.0,58130.0,0.002913]
[1720799077387,0.43717715,58131.0,58130.0,0.081813]
[1720799077572,0.62563548,58131.0,58130.0,0.081813]
[1720799077785,0.10956048,58131.0,58130.0,0.72561091]
[1720799078133,0.23836901,58131.0,58130.0,0.84461091]
[1720799078494,0.11245701,58131.0,58130.0,1.47232964]
[1720799078700,0.11245701,58131.0,58130.0,1.47032964]
[1720799078701,0.08669897,58131.0,58130.0,1.47032964]
[1720799079236,0.08669897,58131.0,58130.0,1.46932964]
[1720799079438,0.08669897,58131.0,58130.0,1.62686318]
[1720799079637,0.03518421,58131.0,58130.0,1.62686318]
[1720799079996,0.03518421,58131.0,58130.0,1.46932964]
[1720799080201,0.03518421,58131.0,58130.0,1.01980084]
[1720799080372,0.08669897,58131.0,58130.0,1.01980084]
[1720799080699,0.08669897,58131.0,58130.0,1.36085684]
[1720799080896,0.08769897,58131.0,58130.0,1.36785684]
[1720799081101,0.08769897,58131.0,58130.0,1.37485684]
[1720799081301,0.08769838,58131.0,58130.0,1.37485684]
[1720799081507,0.08769838,58131.0,58130.0,1.36085684]
[1720799081855,0.03618421,58131.0,58130.0,1.36432964]
[1720799082059,0.03618421,58131.0,58130.0,1.02027364]
[1720799082482,0.03618421,58131.0,58130.0,1.36432964]
[1720799082688,0.03618421,58131.0,58130.0,1.08027364]
[1720799082885,0.343996,58141.0,58130.0,1.08027364]
[1720799082886,0.171999,58140.0,58136.0,0.172009]
[1720799083115,0.1102369,58139.0,58136.0,0.172009]
[1720799083261,0.1102369,58138.0,58137.0,0.1782173]
[1720799083604,0.23932632,58138.0,58137.0,0.2388173]
[1720799083779,0.23932632,58138.0,58137.0,0.5828263]
[1720799084598,0.23932632,58138.0,58137.0,0.6647263]
[1720799084761,0.23932632,58138.0,58137.0,0.80060493]
[1720799084966,0.23932632,58138.0,58137.0,0.81060493]
[1720799084967,0.24032632,58138.0,58137.0,0.81060493]
[1720799085410,0.24032632,58138.0,58137.0,0.81860493]
[1720799085411,0.11255118,58138.0,58137.0,0.81860493]
[1720799085607,0.11255118,58138.0,58137.0,1.62663293]
[1720799085608,0.03769709,58138.0,58137.0,1.62663293]
[1720799085818,0.05620241,58138.0,58137.0,1.4907543]
[1720799086218,0.02320137,58138.0,58137.0,1.4907543]
[1720799086444,0.07725642,58140.0,58139.0,0.920007]
[1720799086778,0.07725642,58140.0,58139.0,0.860007]
[1720799087137,0.07725642,58140.0,58139.0,0.86621552]
[1720799087138,0.07158719,58140.0,58139.0,0.86621552]
[1720799087542,0.10300856,58141.0,58140.0,0.859992]
[1720799087745,0.10300856,58141.0,58140.0,0.858992]
[1720799087746,0.17428352,58141.0,58140.0,0.858992]
[1720799087901,0.07127496,58141.0,58140.0,0.86519998]
[1720799088102,0.07127496,58141.0,58140.0,1.06777028]
[1720799088318,0.07127496,58141.0,58140.0,1.41076728]
[1720799088860,0.07127496,58141.0,58140.0,1.35076728]
[1720799089014,0.07227496,58141.0,58140.0,1.36476728]
[1720799089220,0.07227496,58141.0,58140.0,1.42476728]
[1720799089446,0.07279958,58141.0,58140.0,1.42476728]
[1720799089938,0.07279958,58141.0,58140.0,1.43876728]
[1720799091356,0.07279958,58141.0,58140.0,1.78589398]
[1720799091557,0.001,58141.0,58140.0,1.78589398]
[1720799094361,0.001,58141.0,58140.0,1.38189698]
[1720799095036,0.001,58141.0,58140.0,1.44189698]
[1720799096304,0.03321243,58141.0,58140.0,1.44189698]
[1720799096930,0.03321243,58141.0,58140.0,1.6871062]
[1720799097451,0.08472823,58141.0,58140.0,1.44189698]
[1720799098033,0.03321243,58141.0,58140.0,1.44189698]
[1720799099384,0.03290556,58141.0,58140.0,1.44189698]
[1720799100411,0.03290556,58141.0,58140.0,1.38189698]
[1720799100613,0.03290556,58141.0,58140.0,1.88589398]
[1720799100809,0.03290556,58141.0,58140.0,1.54189698]
[1720799101012,0.03290556,58141.0,58140.0,1.71213438]
[1720799101189,0.03290556,58141.0,58140.0,2.25613138]
[1720799101389,0.03290556,58141.0,58140.0,2.10889398]
[1720799101799,0.03290556,58141.0,58140.0,1.90889398]
[1720799102199,0.03290556,58141.0,58140.0,1.89489398]
[1720799102438,0.001,58156.0,58151.0,0.85983]
[1720799102636,0.001,58156.0,58151.0,0.85883]
[1720799102637,0.12959797,58152.0,58151.0,0.85883]
[1720799102993,0.23515845,58152.0,58151.0,1.26915369]
[1720799103167,0.23515845,58152.0,58151.0,1.27465369]
[1720799103341,0.23515845,58152.0,58151.0,1.47575906]
[1720799103342,0.20939413,58152.0,58151.0,1.47575906]
[1720799103548,0.13698021,58152.0,58151.0,1.47575906]
[1720799103894,0.13698021,58152.0,58151.0,1.41575906]
[1720799104069,0.03397656,58152.0,58151.0,1.47575906]
[1720799104226,0.03397656,58152.0,58151.0,1.48975906]
[1720799104227,0.13698021,58152.0,58151.0,1.48975906]
[1720799104427,0.03397656,58152.0,58151.0,1.42975906]
[1720799104634,0.03397656,58152.0,58151.0,0.87922169]
[1720799104854,0.03497656,58152.0,58151.0,0.89322169]
[1720799105062,0.21042488,58152.0,58151.0,0.20535769]
[1720799105258,0.21046822,58152.0,58151.0,0.20535769]
[1720799105433,0.27943841,58152.0,58151.0,0.03439169]
[1720799105635,0.89738861,58152.0,58151.0,0.03439169]
[1720799105839,1.24131461,58152.0,58151.0,0.028]
[1720799106155,1.92916661,58152.0,58151.0,0.028]
[1720799106332,1.92916661,58152.0,58151.0,0.014]
[1720799107425,2.12916661,58152.0,58151.0,0.014]
[1720799107670,2.12916661,58152.0,58139.0,0.000913]
[1720799107671,1.414289,58140.0,58139.0,0.000913]
[1720799107818,2.3229304,58140.0,58139.0,0.000913]
[1720799108057,1.265175,58131.0,58130.0,0.000913]
[1720799108259,1.347675,58131.0,58130.0,0.000913]
[1720799108504,1.45260788,58131.0,58130.0,0.000913]
[1720799108680,1.60715751,58131.0,58130.0,0.000913]
[1720799108882,1.26310751,58131.0,58130.0,0.000913]
[1720799109083,1.66715751,58131.0,58130.0,0.000913]
[1720799109516,1.51260788,58131.0,58130.0,0.000913]
[1720799110752,1.51660788,58131.0,58130.0,0.004913]
[1720799111096,1.92818208,58131.0,58130.0,0.004913]
[1720799111491,1.8252492,58131.0,58130.0,0.004913]
[1720799111741,1.85929748,58131.0,58130.0,0.004913]
[1720799111911,1.753725,58131.0,58130.0,0.004913]
[1720799112133,1.86329951,58131.0,58130.0,0.004913]
[1720799112340,2.03502486,58131.0,58130.0,0.004913]
[1720799112537,2.23502486,58131.0,58130.0,0.000913]
[1720799112740,2.03902486,58131.0,58130.0,0.001913]
[1720799113672,2.04202486,58131.0,58130.0,0.001913]
[1720799114219,1.86829951,58131.0,58130.0,0.001913]
[1720799114420,2.06829951,58131.0,58130.0,0.001913]
[1720799114628,1.86829951,58131.0,58130.0,0.001913]
[1720799114827,2.06829951,58131.0,58130.0,0.001913]
[1720799115185,2.24193772,58131.0,58130.0,0.001913]
[1720799115369,2.58598772,58131.0,58130.0,0.001913]
[1720799115525,2.41234951,58131.0,58130.0,0.001913]
[1720799115727,2.43534951,58131.0,58130.0,0.001913]
[1720799115928,2.21234951,58131.0,58130.0,0.001913]
[1720799116139,1.86829951,58131.0,58130.0,0.001913]
[1720799116360,2.05247774,58131.0,58130.0,0.001913]
[1720799117058,2.04947774,58131.0,58130.0,0.001913]
[1720799117378,1.87692287,58131.0,58130.0,0.001913]
[1720799117582,1.87692287,58131.0,58130.0,0.000913]
[1720799117583,1.86892287,58131.0,58130.0,0.000913]
[1720799117798,1.80892287,58131.0,58130.0,0.000913]
[1720799117993,1.53187287,58131.0,58130.0,0.001913]
[1720799118143,1.53344075,58131.0,58130.0,0.001913]
[1720799118784,1.53344075,58131.0,58130.0,0.000913]
[1720799118785,1.52644075,58131.0,58130.0,0.000913]
[1720799119125,1.53344075,58131.0,58130.0,0.001913]
[1720799119326,1.53244075,58131.0,58130.0,0.001913]
[1720799119591,1.52544075,58131.0,58130.0,0.000913]
[1720799119898,1.52644075,58131.0,58130.0,0.000913]
[1720799120235,1.67961019,58131.0,58130.0,0.000913]
[1720799120772,1.52544075,58131.0,58130.0,0.000913]
[1720799121179,1.52644075,58131.0,58130.0,0.000913]
[1720799121378,1.52572036,58131.0,58130.0,0.000913]
[1720799121581,1.53272036,58131.0,58130.0,0.001913]
[1720799121925,1.53272036,58131.0,58130.0,0.000913]
[1720799121926,1.68673065,58131.0,58130.0,0.000913]
[1720799122146,1.67973065,58131.0,58130.0,0.000913]
[1720799122342,1.68473065,58131.0,58130.0,0.000913]
[1720799122548,0.12290937,58131.0,58130.0,0.146013]
[1720799122677,0.37299013,58131.0,58130.0,0.146013]
[1720799122878,0.37299013,58131.0,58125.0,0.00306353]
[1720799122879,0.23304,58126.0,58125.0,0.00306353]
[1720799123199,0.23304,58126.0,58118.0,0.01721311]
[1720799123200,1.343223,58119.0,58118.0,0.01721311]
[1720799123406,2.03903001,58119.0,58118.0,0.01721311]
[1720799124173,2.03990064,58119.0,58118.0,0.01721311]
[1720799124488,1.648623,58119.0,58118.0,0.01721311]
[1720799124686,1.88450061,58119.0,58118.0,0.01721311]
[1720799124886,2.10022561,58119.0,58118.0,0.01721311]
[1720799125114,2.22861148,58119.0,58118.0,0.01721311]
[1720799125314,1.75710461,58119.0,58118.0,0.02321311]
[1720799125640,2.22958529,58119.0,58118.0,0.02321311]
[1720799126061,2.10122561,58119.0,58118.0,0.013]
[1720799126263,2.10122561,58119.0,58101.0,0.00306353]
[1720799126264,1.204777,58102.0,58101.0,0.00306353]
[1720799126463,1.62879013,58102.0,58101.0,0.00306353]
[1720799126695,1.70258808,58102.0,58101.0,0.00306353]
[1720799126866,0.516412,58093.0,58092.0,0.009097]
[1720799127095,0.55152513,58093.0,58092.0,0.009097]
[1720799127455,0.89580013,58093.0,58092.0,0.009097]
[1720799127698,1.24007513,58093.0,58092.0,0.009097]
[1720799127816,1.24016428,58093.0,58092.0,0.009097]
[1720799128022,1.31364193,58093.0,58092.0,0.009097]
[1720799128463,1.24016428,58093.0,58092.0,0.009097]
[1720799129264,1.86002626,58093.0,58092.0,0.009097]
[1720799129489,1.86002626,58093.0,58092.0,0.015097]
[1720799129490,1.86103429,58093.0,58092.0,0.015097]
[1720799129768,1.88490458,58093.0,58092.0,0.015097]
[1720799130169,1.266169,58083.0,58082.0,0.009097]
[1720799130375,1.68787128,58083.0,58082.0,0.009097]
[1720799130561,2.05607557,58083.0,58082.0,0.009097]
[1720799130788,2.10753631,58083.0,58082.0,0.009097]
[1720799130990,2.07333403,58083.0,58082.0,0.009097]
[1720799131189,2.10744709,58083.0,58082.0,0.009097]
[1720799131393,2.30744933,58083.0,58082.0,0.009097]
[1720799131534,2.10744933,58083.0,58082.0,0.009097]
[1720799131740,2.11344933,58083.0,58082.0,0.010097]
[1720799131985,2.07933403,58083.0,58082.0,0.010097]
[1720799132398,1.67500003,58083.0,58082.0,0.010097]
[1720799132611,1.6512046,58083.0,58082.0,0.009097]
[1720799132752,1.1687706,58083.0,58082.0,0.009097]
[1720799132956,0.9363706,58083.0,58082.0,0.010097]
[1720799133387,0.9323706,58083.0,58082.0,0.010097]
[1720799133588,0.90850031,58083.0,58082.0,0.010097]
[1720799134182,0.99935034,58083.0,58082.0,0.010097]
[1720799134717,0.98635034,58083.0,58082.0,0.009097]
[1720799135117,1.33068434,58083.0,58082.0,0.009097]
[1720799135579,0.172167,58083.0,58082.0,0.009097]
[1720799135797,0.006,58083.0,58082.0,0.009097]
[1720799135990,0.006,58083.0,58082.0,0.01708723]
[1720799135991,0.178167,58083.0,58082.0,0.01708723]
[1720799136473,0.172167,58083.0,58082.0,0.01708723]
[1720799136678,0.344312,58087.0,58082.0,0.01708723]
[1720799137089,0.172159,58086.0,58082.0,0.01708723]
[1720799137312,0.172159,58086.0,58082.0,0.18925623]
[1720799137704,0.172167,58083.0,58082.0,0.01708723]
[1720799137852,0.516501,58083.0,58082.0,0.01708723]
[1720799138048,0.517501,58083.0,58082.0,0.01708723]
[1720799138254,0.861835,58083.0,58082.0,0.01708723]
[1720799138608,0.861835,58083.0,58082.0,0.010097]
[1720799138609,0.862835,58083.0,58082.0,0.010097]
[1720799138992,0.862835,58083.0,58082.0,0.01808119]
[1720799139160,0.861835,58083.0,58082.0,0.01708119]
[1720799139764,0.516501,58083.0,58082.0,0.01708119]
[1720799141625,0.6381149,58083.0,58082.0,0.01708119]
[1720799141848,1.206169,58083.0,58082.0,0.009097]
[1720799142152,0.861835,58083.0,58082.0,0.009097]
[1720799142325,1.206169,58083.0,58082.0,0.009097]
[1720799142927,1.206169,58083.0,58082.0,0.010097]
[1720799143248,1.3405659,58083.0,58082.0,0.009097]
[1720799143966,1.4010659,58083.0,58082.0,0.009097]
[1720799144266,1.73241998,58083.0,58082.0,0.009097]
[1720799145175,2.07675398,58083.0,58082.0,0.009097]
[1720799145331,1.67241998,58083.0,58082.0,0.009097]
[1720799145732,1.53802308,58083.0,58082.0,0.009097]
[1720799146905,1.47752308,58083.0,58082.0,0.009097]
[1720799147037,1.23212308,58083.0,58082.0,0.009097]
[1720799147254,0.860835,58083.0,58082.0,0.009097]
[1720799147848,0.861835,58083.0,58082.0,0.009097]
[1720799148842,0.516501,58083.0,58082.0,0.009097]
[1720799149043,0.34532,58086.0,58082.0,0.009097]
[1720799149044,0.34432,58086.0,58082.0,0.009097]
[1720799149402,0.172166,58084.0,58083.0,0.00811757]
[1720799150539,0.344303,58089.0,58083.0,0.2433471]
[1720799150765,0.34529,58091.0,58090.0,0.172145]
[1720799150766,0.0102545,58091.0,58090.0,0.172145]
[1720799150972,0.00083,58092.0,58088.0,0.344299]
[1720799151163,0.172971,58092.0,58090.0,0.01117253]
[1720799151519,0.172971,58092.0,58090.0,0.00306353]
[1720799151721,0.172971,58092.0,58091.0,0.00810842]
[1720799151905,0.00083,58092.0,58090.0,0.00306353]
[1720799152100,0.00083,58092.0,58091.0,0.00810842]
[1720799152570,0.00083,58092.0,58089.0,0.00306353]
[1720799152769,0.2592211,58092.0,58091.0,0.00810842]
[1720799152953,0.00083,58092.0,58091.0,0.18025142]
[1720799153309,0.00083,58092.0,58091.0,0.24435142]
[1720799153649,0.00083,58092.0,58091.0,0.15350842]
[1720799153858,0.05357041,58092.0,58091.0,0.15350842]
[1720799154206,0.00083,58092.0,58091.0,0.00810842]
[1720799154530,0.00083,58092.0,58091.0,0.172143]
[1720799154737,0.00083,58092.0,58091.0,0.18025142]
[1720799155365,0.00083,58092.0,58091.0,0.52453842]
[1720799155610,0.00083,58092.0,58091.0,0.86882542]
[1720799155981,0.00083,58092.0,58091.0,1.07102542]
[1720799156607,0.00083,58092.0,58091.0,1.41531242]
[1720799157020,0.00083,58092.0,58091.0,2.05959942]
[1720799157359,0.00083,58092.0,58091.0,2.50388642]
[1720799157495,0.00083,58092.0,58091.0,2.18259942]
[1720799157697,0.00083,58092.0,58091.0,1.75959942]
[1720799158109,0.00083,58092.0,58091.0,1.41531242]
[1720799159936,0.00083,58092.0,58091.0,1.07102542]
[1720799160576,0.00083,58092.0,58091.0,1.41531242]